[Event "Titled Tuesday Blitz April 19 Late 2022"]
[White "Bacrot, Etienne"]
[Black "Schekachikhin, Maksim"]
[WhiteFideId "605506"]
[BlackFideId "24177830"]
[WhiteElo "2673"]
[BlackElo "2230"]
[Result "1-0"]
[Round "02"]
[TimeControl "180+1"]
[Date "2022.04.19"]
[WhiteClock "0:01:39"]
[BlackClock "0:00:05"]

1. e4 {[%clk 0:03:00]}  c5 {[%clk 0:02:58]} 2. Nf3 {[%clk 0:03:01]}  e6 {[%clk 0:02:58]} 3. b3 {[%clk 0:03:00]}  Nc6 {[%clk 0:02:57]} 4. Bb2 {[%clk 0:03:00]}  a6 {[%clk 0:02:57]} 5. c4 {[%clk 0:03:00]}  Nf6 {[%clk 0:02:56]} 6. Nc3 {[%clk 0:02:59]}  d6 {[%clk 0:02:43]} 7. g3 {[%clk 0:02:59]}  Be7 {[%clk 0:02:43]} 8. Bg2 {[%clk 0:03:00]}  O-O {[%clk 0:02:43]} 9. O-O {[%clk 0:03:00]}  Qc7 {[%clk 0:02:40]} 10. d4 {[%clk 0:03:00]}  cxd4 {[%clk 0:02:39]} 11. Nxd4 {[%clk 0:03:01]}  Ne5 {[%clk 0:02:37]} 12. Re1 {[%clk 0:02:59]}  Re8 {[%clk 0:02:34]} 13. h3 {[%clk 0:02:59]}  Rb8 {[%clk 0:02:33]} 14. Rc1 {[%clk 0:02:58]}  Ned7 {[%clk 0:02:27]} 15. f4 {[%clk 0:02:51]}  Bf8 {[%clk 0:02:19]} 16. Kh2 {[%clk 0:02:49]}  g6 {[%clk 0:01:48]} 17. Qd2 {[%clk 0:02:37]}  e5 {[%clk 0:01:26]} 18. Nc2 {[%clk 0:02:36]}  b6 {[%clk 0:01:22]} 19. Nd5 {[%clk 0:02:24]}  Nxd5 {[%clk 0:01:21]} 20. cxd5 {[%clk 0:02:24]}  Nc5 {[%clk 0:00:24]} 21. b4 {[%clk 0:02:12]}  Na4 {[%clk 0:00:24]} 22. Ba1 {[%clk 0:02:13]}  Qd7 {[%clk 0:00:13]} 23. Ne3 {[%clk 0:02:06]}  b5 {[%clk 0:00:12]} 24. Ng4 {[%clk 0:02:03]}  Bg7 {[%clk 0:00:11]} 25. fxe5 {[%clk 0:02:00]}  dxe5 {[%clk 0:00:11]} 26. Rf1 {[%clk 0:01:59]}  Qe7 {[%clk 0:00:11]} 27. Nh6+ {[%clk 0:01:52]}  Bxh6 {[%clk 0:00:11]} 28. Qxh6 {[%clk 0:01:53]}  Qxb4 {[%clk 0:00:09]} 29. Rc7 {[%clk 0:01:46]}  Re7 {[%clk 0:00:08]} 30. Bxe5 {[%clk 0:01:39]}  Rxe5 {[%clk 0:00:05]} 31. Rfxf7 {[%clk 0:01:39]} 1-0


[Site "https://www.chess.com"]

[Event "Titled Tuesday Blitz April 19 Late 2022"]
[White "Baker, Chris W"]
[Black "Sirosh, Ilja"]
[WhiteFideId "401676"]
[BlackFideId "4500458"]
[WhiteElo "2234"]
[BlackElo "2241"]
[Result "0-1"]
[Round "02"]
[TimeControl "180+1"]
[Date "2022.04.19"]
[WhiteClock "0:00:43"]
[BlackClock "0:00:30"]

1. c4 {[%clk 0:02:56]}  Nf6 {[%clk 0:02:57]} 2. Nf3 {[%clk 0:02:56]}  g6 {[%clk 0:02:57]} 3. g3 {[%clk 0:02:55]}  Bg7 {[%clk 0:02:58]} 4. Bg2 {[%clk 0:02:55]}  O-O {[%clk 0:02:58]} 5. O-O {[%clk 0:02:55]}  d6 {[%clk 0:02:59]} 6. d4 {[%clk 0:02:55]}  c5 {[%clk 0:03:00]} 7. Nc3 {[%clk 0:02:54]}  Nc6 {[%clk 0:02:59]} 8. b3 {[%clk 0:02:49]}  cxd4 {[%clk 0:02:11]} 9. Nxd4 {[%clk 0:02:48]}  Nxd4 {[%clk 0:02:12]} 10. Qxd4 {[%clk 0:02:47]}  Ne4 {[%clk 0:02:13]} 11. Qxe4 {[%clk 0:02:39]}  Bxc3 {[%clk 0:02:13]} 12. Bh6 {[%clk 0:02:33]}  Bxa1 {[%clk 0:01:40]} 13. Bxf8 {[%clk 0:02:32]}  Kxf8 {[%clk 0:01:36]} 14. Rxa1 {[%clk 0:02:29]}  Qb6 {[%clk 0:01:33]} 15. Rd1 {[%clk 0:02:18]}  a5 {[%clk 0:01:26]} 16. h4 {[%clk 0:02:02]}  a4 {[%clk 0:01:19]} 17. Qe3 {[%clk 0:01:49]}  Qxe3 {[%clk 0:01:17]} 18. fxe3 {[%clk 0:01:49]}  axb3 {[%clk 0:01:18]} 19. axb3 {[%clk 0:01:49]}  Ra3 {[%clk 0:01:18]} 20. Rd3 {[%clk 0:01:40]}  b6 {[%clk 0:01:15]} 21. Kf2 {[%clk 0:01:39]}  Bf5 {[%clk 0:01:04]} 22. e4 {[%clk 0:01:38]}  Be6 {[%clk 0:01:01]} 23. Ke3 {[%clk 0:01:35]}  f6 {[%clk 0:01:00]} 24. Kd4 {[%clk 0:01:33]}  Ra2 {[%clk 0:01:00]} 25. Bf3 {[%clk 0:01:33]}  Ke8 {[%clk 0:00:56]} 26. Kc3 {[%clk 0:01:32]}  Kd7 {[%clk 0:00:54]} 27. b4 {[%clk 0:01:31]}  Kc7 {[%clk 0:00:54]} 28. Kd4 {[%clk 0:01:18]}  Ra4 {[%clk 0:00:48]} 29. Kc3 {[%clk 0:01:13]}  h6 {[%clk 0:00:47]} 30. Rd2 {[%clk 0:01:12]}  Ra3+ {[%clk 0:00:46]} 31. Kb2 {[%clk 0:01:02]}  Ra4 {[%clk 0:00:46]} 32. Kb3 {[%clk 0:01:01]}  b5 {[%clk 0:00:46]} 33. Rc2 {[%clk 0:00:57]}  Ra7 {[%clk 0:00:30]} 34. Kc3 {[%clk 0:00:50]}  Bxc4 {[%clk 0:00:30]} 35. Kd4 {[%clk 0:00:43]}  Ra3 {[%clk 0:00:30]} 0-1


[Site "https://www.chess.com"]

[Event "Titled Tuesday Blitz April 19 Late 2022"]
[White "Bazeev, German"]
[Black "Avramidou, Anastasia"]
[WhiteFideId "24119350"]
[BlackFideId "4239873"]
[WhiteElo "2493"]
[BlackElo "2183"]
[Result "1-0"]
[Round "02"]
[TimeControl "180+1"]
[Date "2022.04.19"]
[WhiteClock "0:00:33"]
[BlackClock "0:00:12"]

1. d4 {[%clk 0:03:00]}  Nf6 {[%clk 0:02:46]} 2. Nf3 {[%clk 0:03:01]}  e6 {[%clk 0:02:46]} 3. c4 {[%clk 0:03:01]}  c5 {[%clk 0:02:47]} 4. d5 {[%clk 0:03:01]}  exd5 {[%clk 0:02:47]} 5. cxd5 {[%clk 0:03:02]}  d6 {[%clk 0:02:48]} 6. Nc3 {[%clk 0:03:02]}  g6 {[%clk 0:02:49]} 7. e4 {[%clk 0:03:02]}  Bg7 {[%clk 0:02:50]} 8. h3 {[%clk 0:03:03]}  O-O {[%clk 0:02:51]} 9. Bd3 {[%clk 0:03:03]}  Re8 {[%clk 0:02:51]} 10. O-O {[%clk 0:03:03]}  Nbd7 {[%clk 0:02:50]} 11. Bf4 {[%clk 0:03:03]}  Ne5 {[%clk 0:02:42]} 12. Nxe5 {[%clk 0:03:03]}  dxe5 {[%clk 0:02:42]} 13. Be3 {[%clk 0:03:04]}  b6 {[%clk 0:02:42]} 14. a3 {[%clk 0:03:00]}  Nh5 {[%clk 0:02:41]} 15. Re1 {[%clk 0:02:58]}  Nf4 {[%clk 0:02:40]} 16. Bf1 {[%clk 0:02:59]}  f5 {[%clk 0:02:38]} 17. b4 {[%clk 0:02:58]}  cxb4 {[%clk 0:02:36]} 18. axb4 {[%clk 0:02:57]}  fxe4 {[%clk 0:02:36]} 19. Nxe4 {[%clk 0:02:55]}  Bf5 {[%clk 0:02:37]} 20. Ng3 {[%clk 0:02:52]}  Kh8 {[%clk 0:02:00]} 21. Nxf5 {[%clk 0:02:49]}  gxf5 {[%clk 0:02:01]} 22. d6 {[%clk 0:02:47]}  Re6 {[%clk 0:01:49]} 23. d7 {[%clk 0:02:39]}  Re7 {[%clk 0:01:41]} 24. Bb5 {[%clk 0:02:39]}  Ne6 {[%clk 0:01:20]} 25. Bc6 {[%clk 0:02:37]}  Rb8 {[%clk 0:01:15]} 26. Rxa7 {[%clk 0:02:36]}  Bf6 {[%clk 0:01:12]} 27. b5 {[%clk 0:02:33]}  f4 {[%clk 0:01:10]} 28. Bc1 {[%clk 0:02:30]}  Rg7 {[%clk 0:01:09]} 29. Qd6 {[%clk 0:02:25]}  Nd4 {[%clk 0:01:04]} 30. Bb2 {[%clk 0:02:15]}  f3 {[%clk 0:00:29]} 31. g3 {[%clk 0:01:55]}  Nf5 {[%clk 0:00:22]} 32. Bxe5 {[%clk 0:01:28]}  Nxd6 {[%clk 0:00:19]} 33. Bxd6 {[%clk 0:01:29]}  Rg8 {[%clk 0:00:17]} 34. Re8 {[%clk 0:01:13]}  Qxe8 {[%clk 0:00:16]} 35. dxe8=Q {[%clk 0:01:12]}  Rbxe8 {[%clk 0:00:17]} 36. Bxe8 {[%clk 0:00:42]}  Rxe8 {[%clk 0:00:18]} 37. g4 {[%clk 0:00:42]}  Bd4 {[%clk 0:00:17]} 38. Re7 {[%clk 0:00:34]}  Rxe7 {[%clk 0:00:11]} 39. Bxe7 {[%clk 0:00:35]}  Kg7 {[%clk 0:00:11]} 40. Bg5 {[%clk 0:00:34]}  Kf7 {[%clk 0:00:11]} 41. Be3 {[%clk 0:00:34]}  Bxe3 {[%clk 0:00:10]} 42. fxe3 {[%clk 0:00:35]}  Ke6 {[%clk 0:00:11]} 43. Kf2 {[%clk 0:00:32]}  Kd5 {[%clk 0:00:11]} 44. h4 {[%clk 0:00:32]}  Kc5 {[%clk 0:00:11]} 45. h5 {[%clk 0:00:32]}  Kxb5 {[%clk 0:00:12]} 46. g5 {[%clk 0:00:32]}  Kc5 {[%clk 0:00:12]} 47. g6 {[%clk 0:00:33]} 1-0


[Site "https://www.chess.com"]

[Event "Titled Tuesday Blitz April 19 Late 2022"]
[White "Bibasa, Bob"]
[Black "Petrovskyi, Vadym"]
[WhiteFideId "10000240"]
[BlackFideId "14165210"]
[WhiteElo "2056"]
[BlackElo "2400"]
[Result "0-1"]
[Round "02"]
[TimeControl "180+1"]
[Date "2022.04.19"]
[WhiteClock "0:00:13"]
[BlackClock "0:00:25"]

1. e4 {[%clk 0:03:00]}  c5 {[%clk 0:02:58]} 2. Nf3 {[%clk 0:03:00]}  d6 {[%clk 0:02:58]} 3. d4 {[%clk 0:03:00]}  cxd4 {[%clk 0:02:59]} 4. Nxd4 {[%clk 0:03:01]}  Nf6 {[%clk 0:02:59]} 5. f3 {[%clk 0:03:02]}  e5 {[%clk 0:02:59]} 6. Nb3 {[%clk 0:03:02]}  Be6 {[%clk 0:03:00]} 7. c4 {[%clk 0:03:02]}  Nbd7 {[%clk 0:03:00]} 8. Be3 {[%clk 0:03:01]}  Rc8 {[%clk 0:03:00]} 9. N1d2 {[%clk 0:02:55]}  a5 {[%clk 0:02:59]} 10. Be2 {[%clk 0:02:54]}  a4 {[%clk 0:02:58]} 11. Nc1 {[%clk 0:02:54]}  Nb6 {[%clk 0:02:58]} 12. O-O {[%clk 0:02:51]}  Be7 {[%clk 0:02:54]} 13. Nd3 {[%clk 0:02:46]}  Nxc4 {[%clk 0:02:44]} 14. Nxc4 {[%clk 0:02:43]}  Rxc4 {[%clk 0:02:41]} 15. Nf2 {[%clk 0:02:21]}  Rc8 {[%clk 0:02:18]} 16. Qxa4+ {[%clk 0:02:20]}  Nd7 {[%clk 0:02:16]} 17. Rac1 {[%clk 0:02:17]}  Ra8 {[%clk 0:02:11]} 18. Qb4 {[%clk 0:02:13]}  O-O {[%clk 0:02:03]} 19. a3 {[%clk 0:02:09]}  d5 {[%clk 0:01:59]} 20. Qxb7 {[%clk 0:02:02]}  d4 {[%clk 0:01:53]} 21. Bd2 {[%clk 0:01:59]}  Nc5 {[%clk 0:01:48]} 22. Qc6 {[%clk 0:01:50]}  Rc8 {[%clk 0:01:44]} 23. Qb5 {[%clk 0:01:45]}  Rb8 {[%clk 0:01:40]} 24. Qc6 {[%clk 0:01:45]}  Rxb2 {[%clk 0:01:36]} 25. Bb4 {[%clk 0:01:39]}  Nb3 {[%clk 0:01:28]} 26. Rc2 {[%clk 0:01:32]}  Rxc2 {[%clk 0:01:10]} 27. Qxc2 {[%clk 0:01:32]}  Bxb4 {[%clk 0:01:07]} 28. axb4 {[%clk 0:01:32]}  Qb6 {[%clk 0:01:06]} 29. Nd3 {[%clk 0:01:28]}  Rc8 {[%clk 0:01:05]} 30. Qb2 {[%clk 0:01:27]}  f6 {[%clk 0:00:58]} 31. Bd1 {[%clk 0:01:22]}  Rc3 {[%clk 0:00:55]} 32. Bxb3 {[%clk 0:01:14]}  Rxb3 {[%clk 0:00:56]} 33. Qd2 {[%clk 0:01:13]}  Bc4 {[%clk 0:00:45]} 34. Nc5 {[%clk 0:01:07]}  Rxb4 {[%clk 0:00:44]} 35. Nd7 {[%clk 0:01:07]}  Qb5 {[%clk 0:00:43]} 36. Rc1 {[%clk 0:01:01]}  Rb2 {[%clk 0:00:40]} 37. Nxf6+ {[%clk 0:00:40]}  gxf6 {[%clk 0:00:41]} 38. Qh6 {[%clk 0:00:40]}  Qb6 {[%clk 0:00:37]} 39. Rxc4 {[%clk 0:00:22]}  d3+ {[%clk 0:00:37]} 40. Kh1 {[%clk 0:00:22]}  Rb1+ {[%clk 0:00:33]} 41. Rc1 {[%clk 0:00:22]}  Qb2 {[%clk 0:00:30]} 42. Rg1 {[%clk 0:00:15]}  d2 {[%clk 0:00:24]} 43. Qxf6 {[%clk 0:00:13]}  Rxg1+ {[%clk 0:00:24]} 44. Kxg1 {[%clk 0:00:13]}  d1=Q# {[%clk 0:00:25]} 0-1


[Site "https://www.chess.com"]

[Event "Titled Tuesday Blitz April 19 Late 2022"]
[White "Bilan, Danila"]
[Black "Jarocka, Liwia"]
[WhiteFideId "24161918"]
[BlackFideId "21807558"]
[WhiteElo "2164"]
[BlackElo "1896"]
[Result "0-1"]
[Round "02"]
[TimeControl "180+1"]
[Date "2022.04.19"]
[WhiteClock "0:00:01"]
[BlackClock "0:00:44"]

1. d4 {[%clk 0:03:00]}  c5 {[%clk 0:02:57]} 2. e3 {[%clk 0:02:59]}  cxd4 {[%clk 0:02:56]} 3. exd4 {[%clk 0:03:00]}  Nf6 {[%clk 0:02:57]} 4. Nf3 {[%clk 0:03:01]}  d5 {[%clk 0:02:57]} 5. Bd3 {[%clk 0:03:01]}  Bg4 {[%clk 0:02:57]} 6. h3 {[%clk 0:03:00]}  Bxf3 {[%clk 0:02:57]} 7. Qxf3 {[%clk 0:02:59]}  Nc6 {[%clk 0:02:58]} 8. c3 {[%clk 0:02:59]}  e6 {[%clk 0:02:58]} 9. O-O {[%clk 0:02:57]}  Be7 {[%clk 0:02:58]} 10. Bf4 {[%clk 0:02:56]}  O-O {[%clk 0:02:58]} 11. Nd2 {[%clk 0:02:56]}  Rc8 {[%clk 0:02:57]} 12. Rfe1 {[%clk 0:02:51]}  Bd6 {[%clk 0:02:57]} 13. Bg5 {[%clk 0:02:46]}  Be7 {[%clk 0:02:57]} 14. Nf1 {[%clk 0:02:44]}  h6 {[%clk 0:02:56]} 15. Bd2 {[%clk 0:02:18]}  Re8 {[%clk 0:02:54]} 16. Ng3 {[%clk 0:02:13]}  Na5 {[%clk 0:02:46]} 17. Rad1 {[%clk 0:01:55]}  Nc4 {[%clk 0:02:45]} 18. Bc1 {[%clk 0:01:54]}  Qc7 {[%clk 0:02:41]} 19. Nh5 {[%clk 0:01:44]}  Nxh5 {[%clk 0:02:31]} 20. Qxh5 {[%clk 0:01:45]}  Bd6 {[%clk 0:02:18]} 21. Bxh6 {[%clk 0:01:08]}  Nxb2 {[%clk 0:01:59]} 22. Bg5 {[%clk 0:00:34]}  Nxd3 {[%clk 0:01:55]} 23. Rxd3 {[%clk 0:00:35]}  g6 {[%clk 0:01:55]} 24. Qh6 {[%clk 0:00:26]}  Bf8 {[%clk 0:01:54]} 25. Qh4 {[%clk 0:00:24]}  Be7 {[%clk 0:01:54]} 26. Rf3 {[%clk 0:00:20]}  Bxg5 {[%clk 0:01:53]} 27. Qxg5 {[%clk 0:00:21]}  Qe7 {[%clk 0:01:53]} 28. Qg3 {[%clk 0:00:19]}  Rc7 {[%clk 0:01:47]} 29. h4 {[%clk 0:00:17]}  Kg7 {[%clk 0:01:04]} 30. Re5 {[%clk 0:00:14]}  Rh8 {[%clk 0:00:46]} 31. h5 {[%clk 0:00:09]}  Qa3 {[%clk 0:00:46]} 32. Ree3 {[%clk 0:00:01]}  Qc1+ {[%clk 0:00:44]} 33. Kh2 {[%clk 0:00:01]}  Rxh5+ {[%clk 0:00:44]} 0-1


[Site "https://www.chess.com"]

[Event "Titled Tuesday Blitz April 19 Late 2022"]
[White "Bluebaum, Matthias"]
[Black "Arabidze, Meri"]
[WhiteFideId "24651516"]
[BlackFideId "13604040"]
[WhiteElo "2550"]
[BlackElo "2335"]
[Result "1-0"]
[Round "02"]
[TimeControl "180+1"]
[Date "2022.04.19"]
[WhiteClock "0:01:27"]
[BlackClock "0:00:14"]

1. d4 {[%clk 0:03:00]}  f5 {[%clk 0:02:55]} 2. Nf3 {[%clk 0:02:59]}  Nf6 {[%clk 0:02:55]} 3. c4 {[%clk 0:03:00]}  e6 {[%clk 0:02:55]} 4. g3 {[%clk 0:02:59]}  d5 {[%clk 0:02:54]} 5. Bg2 {[%clk 0:02:59]}  c6 {[%clk 0:02:54]} 6. O-O {[%clk 0:03:00]}  Bd6 {[%clk 0:02:55]} 7. Nc3 {[%clk 0:03:00]}  O-O {[%clk 0:02:54]} 8. Qc2 {[%clk 0:03:01]}  Bd7 {[%clk 0:02:48]} 9. Rb1 {[%clk 0:02:48]}  Be8 {[%clk 0:02:45]} 10. Ng5 {[%clk 0:02:47]}  Qe7 {[%clk 0:02:41]} 11. Qb3 {[%clk 0:02:47]}  Bg6 {[%clk 0:02:17]} 12. c5 {[%clk 0:02:44]}  Bc7 {[%clk 0:01:46]} 13. Qxb7 {[%clk 0:02:44]}  Ne4 {[%clk 0:01:28]} 14. Ncxe4 {[%clk 0:02:25]}  fxe4 {[%clk 0:01:27]} 15. Qxa8 {[%clk 0:02:20]}  e5 {[%clk 0:01:17]} 16. Qb7 {[%clk 0:02:16]}  exd4 {[%clk 0:01:15]} 17. Ne6 {[%clk 0:02:16]}  Qxe6 {[%clk 0:01:09]} 18. Qxc7 {[%clk 0:02:16]}  e3 {[%clk 0:01:09]} 19. Ra1 {[%clk 0:02:15]}  d3 {[%clk 0:00:55]} 20. Bxe3 {[%clk 0:02:15]}  dxe2 {[%clk 0:00:52]} 21. Rfe1 {[%clk 0:02:15]}  Bd3 {[%clk 0:00:42]} 22. Qd6 {[%clk 0:01:56]}  Qf5 {[%clk 0:00:38]} 23. Qf4 {[%clk 0:01:56]}  Qe6 {[%clk 0:00:33]} 24. Qd4 {[%clk 0:01:55]}  Ba6 {[%clk 0:00:32]} 25. Qd2 {[%clk 0:01:54]}  Nd7 {[%clk 0:00:30]} 26. Bd4 {[%clk 0:01:33]}  Nf6 {[%clk 0:00:19]} 27. Qe3 {[%clk 0:01:29]}  Qf5 {[%clk 0:00:14]} 28. Rxe2 {[%clk 0:01:27]} 1-0


[Site "https://www.chess.com"]

[Event "Titled Tuesday Blitz April 19 Late 2022"]
[White "Boskovic, Drasko"]
[Black "Khripachenko, Alexander"]
[WhiteFideId "927368"]
[BlackFideId "54184975"]
[WhiteElo "2388"]
[BlackElo "2193"]
[Result "1-0"]
[Round "02"]
[TimeControl "180+1"]
[Date "2022.04.19"]
[WhiteClock "0:02:11"]
[BlackClock "0:00:58"]

1. e4 {[%clk 0:03:00]}  c5 {[%clk 0:02:59]} 2. Nf3 {[%clk 0:03:00]}  Nf6 {[%clk 0:03:00]} 3. d3 {[%clk 0:02:57]}  Nc6 {[%clk 0:02:59]} 4. Nbd2 {[%clk 0:02:57]}  d5 {[%clk 0:03:00]} 5. g3 {[%clk 0:02:57]}  g6 {[%clk 0:02:58]} 6. Bg2 {[%clk 0:02:58]}  Bg7 {[%clk 0:02:59]} 7. O-O {[%clk 0:02:59]}  O-O {[%clk 0:02:59]} 8. Re1 {[%clk 0:02:59]}  b6 {[%clk 0:02:58]} 9. exd5 {[%clk 0:02:59]}  Nxd5 {[%clk 0:02:58]} 10. Nc4 {[%clk 0:02:58]}  Bb7 {[%clk 0:02:58]} 11. Bd2 {[%clk 0:02:54]}  Qc7 {[%clk 0:02:56]} 12. c3 {[%clk 0:02:52]}  Rad8 {[%clk 0:02:56]} 13. Qe2 {[%clk 0:02:53]}  Rd7 {[%clk 0:02:54]} 14. a4 {[%clk 0:02:52]}  h6 {[%clk 0:02:52]} 15. Rad1 {[%clk 0:02:53]}  e6 {[%clk 0:02:50]} 16. Bc1 {[%clk 0:02:52]}  Rfd8 {[%clk 0:02:49]} 17. h4 {[%clk 0:02:53]}  h5 {[%clk 0:02:47]} 18. Ng5 {[%clk 0:02:52]}  Nce7 {[%clk 0:02:42]} 19. Nxf7 {[%clk 0:02:42]}  Kxf7 {[%clk 0:02:39]} 20. Qxe6+ {[%clk 0:02:43]}  Kf8 {[%clk 0:02:40]} 21. Ne5 {[%clk 0:02:40]}  Bxe5 {[%clk 0:02:39]} 22. Rxe5 {[%clk 0:02:39]}  Rd6 {[%clk 0:01:51]} 23. Bh6+ {[%clk 0:02:38]}  Ke8 {[%clk 0:01:52]} 24. Qg8+ {[%clk 0:02:33]}  Kd7 {[%clk 0:01:52]} 25. Qf7 {[%clk 0:02:27]}  Kc8 {[%clk 0:01:12]} 26. c4 {[%clk 0:02:22]}  Rf6 {[%clk 0:01:09]} 27. Qg7 {[%clk 0:02:19]}  Qxe5 {[%clk 0:01:07]} 28. cxd5 {[%clk 0:02:13]}  Bxd5 {[%clk 0:01:06]} 29. Bf4 {[%clk 0:02:12]}  Rxf4 {[%clk 0:00:58]} 30. Qxe5 {[%clk 0:02:11]} 1-0


[Site "https://www.chess.com"]

[Event "Titled Tuesday Blitz April 19 Late 2022"]
[White "Bowden, Karl"]
[Black "Kaasen, Tor Fredrik"]
[WhiteFideId "400548"]
[BlackFideId "1516647"]
[WhiteElo "2339"]
[BlackElo "2335"]
[Result "0-1"]
[Round "02"]
[TimeControl "180+1"]
[Date "2022.04.19"]
[WhiteClock "0:00:01"]
[BlackClock "0:00:10"]

1. e4 {[%clk 0:03:00]}  e5 {[%clk 0:03:00]} 2. Nf3 {[%clk 0:02:59]}  Nc6 {[%clk 0:03:00]} 3. Bb5 {[%clk 0:02:59]}  a6 {[%clk 0:03:01]} 4. Ba4 {[%clk 0:03:00]}  Nf6 {[%clk 0:03:01]} 5. d4 {[%clk 0:03:00]}  exd4 {[%clk 0:02:59]} 6. O-O {[%clk 0:03:00]}  Be7 {[%clk 0:02:55]} 7. e5 {[%clk 0:03:00]}  Ne4 {[%clk 0:02:54]} 8. Nxd4 {[%clk 0:03:00]}  Nc5 {[%clk 0:02:53]} 9. Nf5 {[%clk 0:03:00]}  O-O {[%clk 0:02:35]} 10. Qg4 {[%clk 0:02:59]}  g6 {[%clk 0:02:25]} 11. Bh6 {[%clk 0:02:58]}  d5 {[%clk 0:02:02]} 12. Nxe7+ {[%clk 0:02:54]}  Nxe7 {[%clk 0:02:02]} 13. Qf4 {[%clk 0:02:33]}  Ne6 {[%clk 0:01:23]} 14. Qd2 {[%clk 0:01:54]}  b5 {[%clk 0:01:21]} 15. Bxf8 {[%clk 0:01:53]}  Qxf8 {[%clk 0:01:20]} 16. Bb3 {[%clk 0:01:53]}  Bb7 {[%clk 0:01:20]} 17. a4 {[%clk 0:01:41]}  c5 {[%clk 0:01:13]} 18. c3 {[%clk 0:01:26]}  c4 {[%clk 0:01:12]} 19. Bc2 {[%clk 0:01:26]}  d4 {[%clk 0:01:08]} 20. cxd4 {[%clk 0:01:18]}  Rd8 {[%clk 0:01:09]} 21. axb5 {[%clk 0:01:13]}  Nxd4 {[%clk 0:01:09]} 22. bxa6 {[%clk 0:01:04]}  Nf3+ {[%clk 0:00:57]} 23. gxf3 {[%clk 0:01:04]}  Rxd2 {[%clk 0:00:58]} 24. axb7 {[%clk 0:00:50]}  Rxc2 {[%clk 0:00:20]} 25. Ra8 {[%clk 0:00:49]}  Rxb2 {[%clk 0:00:20]} 26. Na3 {[%clk 0:00:37]}  c3 {[%clk 0:00:18]} 27. Rxf8+ {[%clk 0:00:18]}  Kxf8 {[%clk 0:00:19]} 28. Rb1 {[%clk 0:00:14]}  c2 {[%clk 0:00:18]} 29. Rc1 {[%clk 0:00:09]}  Rxb7 {[%clk 0:00:16]} 30. Rxc2 {[%clk 0:00:09]}  Rb3 {[%clk 0:00:16]} 31. Nc4 {[%clk 0:00:08]}  Rxf3 {[%clk 0:00:16]} 32. Ne3 {[%clk 0:00:08]}  Nf5 {[%clk 0:00:10]} 33. Nd5 {[%clk 0:00:01]}  Kg7 {[%clk 0:00:10]} 0-1


[Site "https://www.chess.com"]

[Event "Titled Tuesday Blitz April 19 Late 2022"]
[White "Carrasco Miranda, Andres"]
[Black "Wagner, Dinara"]
[WhiteFideId "3405990"]
[BlackFideId "24157570"]
[WhiteElo "2177"]
[BlackElo "2216"]
[Result "0-1"]
[Round "02"]
[TimeControl "180+1"]
[Date "2022.04.19"]
[WhiteClock "0:00:04"]
[BlackClock "0:01:37"]

1. d4 {[%clk 0:03:00]}  Nf6 {[%clk 0:02:59]} 2. c4 {[%clk 0:03:00]}  e6 {[%clk 0:03:00]} 3. g3 {[%clk 0:02:56]}  d5 {[%clk 0:03:00]} 4. Bg2 {[%clk 0:02:56]}  dxc4 {[%clk 0:03:00]} 5. Nf3 {[%clk 0:02:56]}  Nc6 {[%clk 0:02:59]} 6. O-O {[%clk 0:02:51]}  Rb8 {[%clk 0:02:57]} 7. Nc3 {[%clk 0:02:48]}  b5 {[%clk 0:02:56]} 8. e3 {[%clk 0:02:46]}  Be7 {[%clk 0:02:46]} 9. Qe2 {[%clk 0:02:44]}  a6 {[%clk 0:02:45]} 10. Rd1 {[%clk 0:02:44]}  O-O {[%clk 0:02:44]} 11. e4 {[%clk 0:02:43]}  Nb4 {[%clk 0:02:43]} 12. Ne5 {[%clk 0:02:42]}  Nd7 {[%clk 0:02:36]} 13. Nxd7 {[%clk 0:01:36]}  Bxd7 {[%clk 0:02:35]} 14. d5 {[%clk 0:01:25]}  e5 {[%clk 0:02:30]} 15. a3 {[%clk 0:01:10]}  Nd3 {[%clk 0:02:28]} 16. Rxd3 {[%clk 0:01:09]}  cxd3 {[%clk 0:02:27]} 17. Qxd3 {[%clk 0:01:09]}  Bc5 {[%clk 0:02:26]} 18. b4 {[%clk 0:00:52]}  Bb6 {[%clk 0:02:26]} 19. Be3 {[%clk 0:00:51]}  Qe7 {[%clk 0:02:19]} 20. Bxb6 {[%clk 0:00:49]}  Rxb6 {[%clk 0:02:20]} 21. f4 {[%clk 0:00:46]}  h6 {[%clk 0:02:18]} 22. Rc1 {[%clk 0:00:30]}  exf4 {[%clk 0:02:15]} 23. gxf4 {[%clk 0:00:28]}  Qh4 {[%clk 0:02:16]} 24. Qg3 {[%clk 0:00:25]}  Qe7 {[%clk 0:02:15]} 25. e5 {[%clk 0:00:24]}  Rg6 {[%clk 0:02:15]} 26. Qf3 {[%clk 0:00:12]}  Bg4 {[%clk 0:02:09]} 27. Qe3 {[%clk 0:00:09]}  Bf5 {[%clk 0:02:03]} 28. Ne4 {[%clk 0:00:06]}  Qh4 {[%clk 0:02:03]} 29. Ng3 {[%clk 0:00:04]}  Bh3 {[%clk 0:01:58]} 30. Rxc7 {[%clk 0:00:04]}  Bxg2 {[%clk 0:01:48]} 31. Kxg2 {[%clk 0:00:05]}  Rg4 {[%clk 0:01:48]} 32. f5 {[%clk 0:00:01]}  Rc4 {[%clk 0:01:41]} 33. Rxc4 {[%clk 0:00:01]}  Qxc4 {[%clk 0:01:42]} 34. d6 {[%clk 0:00:01]}  Rc8 {[%clk 0:01:41]} 35. Ne4 {[%clk 0:00:02]}  Qd5 {[%clk 0:01:40]} 36. Kf3 {[%clk 0:00:02]}  Qxe5 {[%clk 0:01:38]} 37. d7 {[%clk 0:00:03]}  Qxf5+ {[%clk 0:01:37]} 38. Ke2 {[%clk 0:00:03]}  Qxd7 {[%clk 0:01:37]} 39. Nc5 {[%clk 0:00:04]}  Qe8 {[%clk 0:01:36]} 40. Qxe8+ {[%clk 0:00:04]}  Rxe8+ {[%clk 0:01:37]} 0-1


[Site "https://www.chess.com"]

[Event "Titled Tuesday Blitz April 19 Late 2022"]
[White "Czopor, Maciej"]
[Black "Fedoseev, Vladimir"]
[WhiteFideId "21805431"]
[BlackFideId "24130737"]
[WhiteElo "1999"]
[BlackElo "2726"]
[Result "0-1"]
[Round "02"]
[TimeControl "180+1"]
[Date "2022.04.19"]
[WhiteClock "0:00:01"]
[BlackClock "0:00:05"]

1. d4 {[%clk 0:03:00]}  Nf6 {[%clk 0:02:59]} 2. c4 {[%clk 0:03:00]}  e6 {[%clk 0:02:59]} 3. g4 {[%clk 0:02:51]}  Nxg4 {[%clk 0:02:58]} 4. e4 {[%clk 0:02:51]}  Bb4+ {[%clk 0:02:49]} 5. Nc3 {[%clk 0:02:46]}  f5 {[%clk 0:02:45]} 6. e5 {[%clk 0:02:36]}  c5 {[%clk 0:02:37]} 7. a3 {[%clk 0:01:38]}  cxd4 {[%clk 0:02:36]} 8. axb4 {[%clk 0:01:37]}  dxc3 {[%clk 0:02:37]} 9. Nf3 {[%clk 0:01:36]}  Qb6 {[%clk 0:02:31]} 10. Qd4 {[%clk 0:00:59]}  Qxd4 {[%clk 0:01:32]} 11. Nxd4 {[%clk 0:01:00]}  Nc6 {[%clk 0:01:29]} 12. Nb5 {[%clk 0:00:59]}  cxb2 {[%clk 0:01:19]} 13. Bxb2 {[%clk 0:00:58]}  O-O {[%clk 0:01:20]} 14. f4 {[%clk 0:00:52]}  Ne3 {[%clk 0:01:07]} 15. Kd2 {[%clk 0:00:45]}  Nxf1+ {[%clk 0:01:06]} 16. Rhxf1 {[%clk 0:00:44]}  b6 {[%clk 0:01:00]} 17. Bc3 {[%clk 0:00:29]}  Bb7 {[%clk 0:00:56]} 18. Nd6 {[%clk 0:00:29]}  Nd8 {[%clk 0:00:51]} 19. b5 {[%clk 0:00:19]}  Kh8 {[%clk 0:00:24]} 20. Bd4 {[%clk 0:00:19]}  Be4 {[%clk 0:00:22]} 21. h4 {[%clk 0:00:16]}  Nb7 {[%clk 0:00:18]} 22. Kc3 {[%clk 0:00:11]}  Nxd6 {[%clk 0:00:16]} 23. exd6 {[%clk 0:00:12]}  Rf7 {[%clk 0:00:13]} 24. h5 {[%clk 0:00:10]}  h6 {[%clk 0:00:13]} 25. Rg1 {[%clk 0:00:10]}  Kh7 {[%clk 0:00:14]} 26. Be5 {[%clk 0:00:10]}  Bf3 {[%clk 0:00:14]} 27. Bd4 {[%clk 0:00:05]}  Bxh5 {[%clk 0:00:06]} 28. Bxb6 {[%clk 0:00:05]}  Rc8 {[%clk 0:00:06]} 29. Rxa7 {[%clk 0:00:04]}  Be2 {[%clk 0:00:06]} 30. c5 {[%clk 0:00:04]}  Bxb5 {[%clk 0:00:06]} 31. Bc7 {[%clk 0:00:02]}  Bc6 {[%clk 0:00:06]} 32. Kd4 {[%clk 0:00:02]}  g5 {[%clk 0:00:05]} 33. fxg5 {[%clk 0:00:01]}  Rg7 {[%clk 0:00:05]} 34. gxh6 {[%clk 0:00:01]}  Rxg1 {[%clk 0:00:05]} 0-1


[Site "https://www.chess.com"]